[Event "Early-Titled-Tuesday-Blitz-November-28-2023"]
[Site "Chess.com"]
[Date "2023.11.28"]
[Round "1"]
[White "Caisachess"]
[Black "SchmakAttack"]
[Result "0-1"]
[WhiteElo "2423"]
[BlackElo "2758"]
[TimeControl "180+1"]
[EndTime "8:07:46 PST"]
[Termination "SchmakAttack won by checkmate"]

1. e4 {[%clk 0:03:00.9]} 1... g6 {[%clk 0:02:20.9]} 2. d4 {[%clk 0:02:58.4]}
2... Bg7 {[%clk 0:02:18.5]} 3. Nf3 {[%clk 0:02:58.6]} 3... d6 {[%clk 0:02:17.6]}
4. Nc3 {[%clk 0:02:56.6]} 4... a6 {[%clk 0:02:15.2]} 5. a4 {[%clk 0:02:56.1]}
5... Nc6 {[%clk 0:02:14]} 6. Be2 {[%clk 0:02:52.8]} 6... e5 {[%clk 0:02:07.4]}
7. dxe5 {[%clk 0:02:51.7]} 7... Nxe5 {[%clk 0:02:04.9]} 8. Nxe5 {[%clk
0:02:51.1]} 8... Bxe5 {[%clk 0:02:05.4]} 9. O-O {[%clk 0:02:51.4]} 9... Bg7
{[%clk 0:02:00.3]} 10. f4 {[%clk 0:02:48.5]} 10... Ne7 {[%clk 0:01:43]} 11. Bc4
{[%clk 0:02:44.4]} 11... O-O {[%clk 0:01:41.4]} 12. Be3 {[%clk 0:02:43.4]} 12...
Be6 {[%clk 0:01:33.5]} 13. Qe2 {[%clk 0:02:38.9]} 13... Qd7 {[%clk 0:01:09.1]}
14. h3 {[%clk 0:02:29.1]} 14... Rae8 {[%clk 0:01:03.4]} 15. Rad1 {[%clk
0:02:27.2]} 15... Bxc4 {[%clk 0:00:58.6]} 16. Qxc4 {[%clk 0:02:26.5]} 16... Qc6
{[%clk 0:00:59.2]} 17. Qxc6 {[%clk 0:02:20.6]} 17... Nxc6 {[%clk 0:01:00.1]} 18.
e5 {[%clk 0:02:07.9]} 18... f5 {[%clk 0:00:37.9]} 19. Nd5 {[%clk 0:01:58.5]}
19... dxe5 {[%clk 0:00:38.2]} 20. Nxc7 {[%clk 0:01:58.3]} 20... Re7 {[%clk
0:00:38.7]} 21. Nd5 {[%clk 0:01:54.7]} 21... Ref7 {[%clk 0:00:38.5]} 22. Bc5
{[%clk 0:01:39.3]} 22... Re8 {[%clk 0:00:37.4]} 23. fxe5 {[%clk 0:01:39.2]}
23... Bxe5 {[%clk 0:00:36.4]} 24. c3 {[%clk 0:01:37.3]} 24... Bg3 {[%clk
0:00:30.1]} 25. Rf3 {[%clk 0:01:24.7]} 25... f4 {[%clk 0:00:30.1]} 26. Rff1
{[%clk 0:00:51.8]} 26... g5 {[%clk 0:00:28.3]} 27. Bf2 {[%clk 0:00:45.2]} 27...
Re2 {[%clk 0:00:21.6]} 28. Bxg3 {[%clk 0:00:32.7]} 28... fxg3 {[%clk 0:00:22.5]}
29. Rxf7 {[%clk 0:00:29.9]} 29... Kxf7 {[%clk 0:00:17]} 30. b4 {[%clk
0:00:18.5]} 30... h5 {[%clk 0:00:13.1]} 31. Kf1 {[%clk 0:00:18.3]} 31... Ra2
{[%clk 0:00:11.9]} 32. Kg1 {[%clk 0:00:18.7]} 32... Rxa4 {[%clk 0:00:10.6]} 33.
Rf1+ {[%clk 0:00:18.3]} 33... Ke6 {[%clk 0:00:10.4]} 34. Nb6 {[%clk 0:00:14.8]}
34... Ra3 {[%clk 0:00:09.1]} 35. Re1+ {[%clk 0:00:14.8]} 35... Kf5 {[%clk
0:00:09]} 36. Nd5 {[%clk 0:00:13.7]} 36... h4 {[%clk 0:00:07.9]} 37. Ne3+ {[%clk
0:00:13.8]} 37... Kg6 {[%clk 0:00:07.8]} 38. Nd5 {[%clk 0:00:13.9]} 38... Ra2
{[%clk 0:00:07.9]} 39. Ne3 {[%clk 0:00:11.3]} 39... Ne5 {[%clk 0:00:07.3]} 40.
Nd5 {[%clk 0:00:08.3]} 40... Nd3 {[%clk 0:00:06.8]} 41. Ne7+ {[%clk 0:00:09.1]}
41... Kf7 {[%clk 0:00:06.6]} 42. Rd1 {[%clk 0:00:10]} 42... Kxe7 {[%clk
0:00:06.3]} 43. Kf1 {[%clk 0:00:09.5]} 43... Nf4 {[%clk 0:00:06.1]} 44. Re1+
{[%clk 0:00:09.1]} 44... Kf6 {[%clk 0:00:06.6]} 45. Rd1 {[%clk 0:00:09.4]} 45...
Rf2+ {[%clk 0:00:06.5]} 46. Ke1 {[%clk 0:00:09.1]} 46... Nxg2# {[%clk
0:00:05.9]} 0-1

[Event "Early-Titled-Tuesday-Blitz-November-28-2023"]
[Site "Chess.com"]
[Date "2023.11.28"]
[Round "1"]
[White "KorolDimitriy75"]
[Black "viktorskliarov"]
[Result "0-1"]
[WhiteElo "2331"]
[BlackElo "2635"]
[TimeControl "180+1"]
[EndTime "8:07:47 PST"]
[Termination "viktorskliarov won by resignation"]

1. d4 {[%clk 0:03:00.9]} 1... Nf6 {[%clk 0:02:58.3]} 2. c4 {[%clk 0:03:01.1]}
2... e6 {[%clk 0:02:58.4]} 3. Nc3 {[%clk 0:03:01.7]} 3... Bb4 {[%clk 0:02:58.3]}
4. Qc2 {[%clk 0:03:01.9]} 4... c5 {[%clk 0:02:57.2]} 5. dxc5 {[%clk 0:03:02]}
5... Na6 {[%clk 0:02:57.2]} 6. Nf3 {[%clk 0:02:59.4]} 6... Nxc5 {[%clk
0:02:56.6]} 7. Bd2 {[%clk 0:02:59.4]} 7... O-O {[%clk 0:02:52.8]} 8. e3 {[%clk
0:02:57.9]} 8... b6 {[%clk 0:02:47.2]} 9. Be2 {[%clk 0:02:57.2]} 9... Bb7 {[%clk
0:02:47.1]} 10. O-O {[%clk 0:02:57]} 10... Rc8 {[%clk 0:02:46.8]} 11. Rfd1
{[%clk 0:02:42.1]} 11... Nfe4 {[%clk 0:02:17.8]} 12. Be1 {[%clk 0:01:54.1]}
12... Qf6 {[%clk 0:02:13.2]} 13. Rac1 {[%clk 0:01:49.5]} 13... Nxc3 {[%clk
0:01:44]} 14. Bxc3 {[%clk 0:01:50.4]} 14... Bxc3 {[%clk 0:01:44.4]} 15. Qxc3
{[%clk 0:01:50.9]} 15... Qxc3 {[%clk 0:01:44.6]} 16. Rxc3 {[%clk 0:01:51.8]}
16... d5 {[%clk 0:01:45.1]} 17. cxd5 {[%clk 0:01:30.8]} 17... Bxd5 {[%clk
0:01:46]} 18. Rdc1 {[%clk 0:01:21.2]} 18... a5 {[%clk 0:01:39.5]} 19. b3 {[%clk
0:01:07.2]} 19... Rcd8 {[%clk 0:01:32]} 20. h3 {[%clk 0:00:55]} 20... Bxf3
{[%clk 0:01:27.4]} 21. Bxf3 {[%clk 0:00:55.9]} 21... Rd2 {[%clk 0:01:27.3]} 22.
R3c2 {[%clk 0:00:36.8]} 22... Rfd8 {[%clk 0:01:26.7]} 23. Kf1 {[%clk 0:00:20.3]}
23... Kf8 {[%clk 0:01:14.7]} 24. Ke1 {[%clk 0:00:19.9]} 24... Rxc2 {[%clk
0:01:12.2]} 25. Rxc2 {[%clk 0:00:20.8]} 25... Ke7 {[%clk 0:01:12.4]} 26. Ke2
{[%clk 0:00:18.2]} 26... e5 {[%clk 0:01:08.2]} 27. Bc6 {[%clk 0:00:15.4]} 27...
f5 {[%clk 0:01:07.1]} 28. Bb5 {[%clk 0:00:15.1]} 28... e4 {[%clk 0:01:02.6]} 29.
Bc4 {[%clk 0:00:14.4]} 29... Kf6 {[%clk 0:01:02.2]} 30. Rd2 {[%clk 0:00:13.7]}
30... Rxd2+ {[%clk 0:01:02.1]} 31. Kxd2 {[%clk 0:00:14.6]} 31... Ke5 {[%clk
0:01:02.1]} 32. Kc3 {[%clk 0:00:14.8]} 32... g5 {[%clk 0:00:58.9]} 33. a3 {[%clk
0:00:14.6]} 33... h5 {[%clk 0:00:48.5]} 34. b4 {[%clk 0:00:14.8]} 34... Nb7
{[%clk 0:00:41.9]} 35. Ba6 {[%clk 0:00:13.9]} 35... Nd6 {[%clk 0:00:41]} 36. Bc4
{[%clk 0:00:13]} 36... h4 {[%clk 0:00:28.8]} 37. Be2 {[%clk 0:00:11.8]} 37... f4
{[%clk 0:00:27.2]} 38. Kb3 {[%clk 0:00:11.1]} 38... fxe3 {[%clk 0:00:26.1]} 39.
fxe3 {[%clk 0:00:12]} 39... Nf5 {[%clk 0:00:26.1]} 40. bxa5 {[%clk 0:00:12]}
40... bxa5 {[%clk 0:00:26.3]} 41. Ka4 {[%clk 0:00:12.4]} 41... Nxe3 {[%clk
0:00:26.8]} 42. Kxa5 {[%clk 0:00:12.2]} 42... Nxg2 {[%clk 0:00:26.5]} 43. a4
{[%clk 0:00:12.6]} 43... Nf4 {[%clk 0:00:26.5]} 44. Bf1 {[%clk 0:00:12.3]} 44...
g4 {[%clk 0:00:20.3]} 45. hxg4 {[%clk 0:00:11.9]} 45... h3 {[%clk 0:00:20.9]}
46. Bxh3 {[%clk 0:00:10.2]} 46... Nxh3 {[%clk 0:00:21.1]} 47. Kb6 {[%clk
0:00:10.6]} 47... e3 {[%clk 0:00:21.7]} 48. a5 {[%clk 0:00:10.8]} 48... e2
{[%clk 0:00:22.3]} 49. a6 {[%clk 0:00:11.7]} 49... e1=Q {[%clk 0:00:22.8]} 50.
a7 {[%clk 0:00:12.5]} 50... Qb4+ {[%clk 0:00:22.4]} 51. Kc7 {[%clk 0:00:12.7]}
51... Qa5+ {[%clk 0:00:20.3]} 52. Kb7 {[%clk 0:00:12.9]} 52... Qb5+ {[%clk
0:00:20.4]} 53. Kc8 {[%clk 0:00:12.5]} 53... Qc6+ {[%clk 0:00:20.2]} 54. Kb8
{[%clk 0:00:12.9]} 54... Qb6+ {[%clk 0:00:20.5]} 55. Ka8 {[%clk 0:00:13.5]}
55... Qc7 {[%clk 0:00:20.7]} 0-1

[Event "Early-Titled-Tuesday-Blitz-November-28-2023"]
[Site "Chess.com"]
[Date "2023.11.28"]
[Round "1"]
[White "tylityli"]
[Black "Vesper2018"]
[Result "0-1"]
[WhiteElo "2265"]
[BlackElo "2601"]
[TimeControl "180+1"]
[EndTime "8:07:47 PST"]
[Termination "Vesper2018 won on time"]

1. d4 {[%clk 0:02:25.8]} 1... Nf6 {[%clk 0:02:59.6]} 2. c4 {[%clk 0:02:25.3]}
2... g6 {[%clk 0:02:59.9]} 3. Nc3 {[%clk 0:02:25.1]} 3... Bg7 {[%clk 0:03:00.4]}
4. e4 {[%clk 0:02:25.4]} 4... d6 {[%clk 0:03:00.9]} 5. Nge2 {[%clk 0:02:26.2]}
5... O-O {[%clk 0:03:00.8]} 6. Ng3 {[%clk 0:02:27.1]} 6... e5 {[%clk 0:02:59.7]}
7. d5 {[%clk 0:02:26.6]} 7... h5 {[%clk 0:02:59.6]} 8. Bg5 {[%clk 0:02:25.5]}
8... Qe8 {[%clk 0:02:54.8]} 9. Qd2 {[%clk 0:02:20.7]} 9... Nh7 {[%clk
0:02:52.1]} 10. Bh6 {[%clk 0:02:20.3]} 10... h4 {[%clk 0:02:51.1]} 11. Nge2
{[%clk 0:02:15.7]} 11... f5 {[%clk 0:02:49.9]} 12. Bxg7 {[%clk 0:02:14.4]} 12...
Kxg7 {[%clk 0:02:49.9]} 13. O-O-O {[%clk 0:02:07.1]} 13... a6 {[%clk 0:02:42.4]}
14. g3 {[%clk 0:02:04.9]} 14... b5 {[%clk 0:02:33.8]} 15. gxh4 {[%clk
0:02:00.3]} 15... b4 {[%clk 0:02:27.6]} 16. Nb1 {[%clk 0:01:57]} 16... fxe4
{[%clk 0:02:25.6]} 17. Ng3 {[%clk 0:01:49.6]} 17... Rf4 {[%clk 0:02:20.4]} 18.
Qxb4 {[%clk 0:01:40.3]} 18... Nf6 {[%clk 0:02:09.5]} 19. h5 {[%clk 0:01:32.9]}
19... gxh5 {[%clk 0:02:04.5]} 20. Rg1 {[%clk 0:01:32.9]} 20... Kh8 {[%clk
0:01:49]} 21. Nd2 {[%clk 0:00:47.4]} 21... Bf5 {[%clk 0:01:43.1]} 22. Nxf5
{[%clk 0:00:45.9]} 22... Rxf5 {[%clk 0:01:42.8]} 23. Bg2 {[%clk 0:00:46.5]}
23... Rf4 {[%clk 0:01:37.9]} 24. Qb7 {[%clk 0:00:36.8]} 24... Nbd7 {[%clk
0:01:36.8]} 25. Qxc7 {[%clk 0:00:36.4]} 25... Rc8 {[%clk 0:01:19.7]} 26. Qxd6
{[%clk 0:00:34.7]} 26... Nc5 {[%clk 0:01:19.8]} 27. Kb1 {[%clk 0:00:28.8]} 27...
Qg6 {[%clk 0:00:19.4]} 28. Bxe4 {[%clk 0:00:27.1]} 28... Ncxe4 {[%clk
0:00:17.9]} 29. Rxg6 {[%clk 0:00:25.7]} 29... Nxd6 {[%clk 0:00:18]} 30. f3
{[%clk 0:00:12.9]} 30... Nxc4 {[%clk 0:00:16.1]} 31. Ne4 {[%clk 0:00:06.5]}
31... Nxe4 {[%clk 0:00:13.7]} 32. fxe4 {[%clk 0:00:07.4]} 32... Rxe4 {[%clk
0:00:13.8]} 33. b3 {[%clk 0:00:05.3]} 33... Na3+ {[%clk 0:00:13.2]} 34. Kb2
{[%clk 0:00:05.4]} 34... Nb5 {[%clk 0:00:13.5]} 35. d6 {[%clk 0:00:05.5]} 35...
Re2+ {[%clk 0:00:12.3]} 36. Kb1 {[%clk 0:00:04.9]} 36... Nc3+ {[%clk 0:00:11]}
37. Kc1 {[%clk 0:00:04.8]} 37... Nxd1+ {[%clk 0:00:10.7]} 38. Kxd1 {[%clk
0:00:05.1]} 38... Rxa2 {[%clk 0:00:10.2]} 39. Rh6+ {[%clk 0:00:04.4]} 39... Kg7
{[%clk 0:00:10.2]} 40. Rxh5 {[%clk 0:00:05]} 40... Kf6 {[%clk 0:00:09.6]} 41.
Rh6+ {[%clk 0:00:04.4]} 41... Kf5 {[%clk 0:00:10.1]} 42. h4 {[%clk 0:00:04.2]}
42... Rg8 {[%clk 0:00:08.4]} 0-1

[Event "Early-Titled-Tuesday-Blitz-November-28-2023"]
[Site "Chess.com"]
[Date "2023.11.28"]
[Round "1"]
[White "ural58"]
[Black "sumopork"]
[Result "0-1"]
[WhiteElo "2461"]
[BlackElo "2844"]
[TimeControl "180+1"]
[EndTime "8:07:51 PST"]
[Termination "sumopork won by resignation"]

1. e4 {[%clk 0:02:57.6]} 1... g6 {[%clk 0:02:59.8]} 2. d4 {[%clk 0:02:55.4]}
2... Bg7 {[%clk 0:02:59.9]} 3. Nc3 {[%clk 0:02:55.3]} 3... d6 {[%clk 0:03:00.3]}
4. Be3 {[%clk 0:02:52.1]} 4... a6 {[%clk 0:02:59.2]} 5. Qd2 {[%clk 0:02:50.6]}
5... b5 {[%clk 0:02:59.3]} 6. Nf3 {[%clk 0:02:46.9]} 6... Bb7 {[%clk 0:02:59.3]}
7. Bd3 {[%clk 0:02:45.9]} 7... Nd7 {[%clk 0:02:59.1]} 8. a4 {[%clk 0:02:44.7]}
8... b4 {[%clk 0:02:56.9]} 9. Ne2 {[%clk 0:02:44.3]} 9... c5 {[%clk 0:02:57]}
10. h4 {[%clk 0:02:40.7]} 10... h6 {[%clk 0:02:53.3]} 11. Nf4 {[%clk 0:02:33.8]}
11... cxd4 {[%clk 0:02:36.5]} 12. Nxd4 {[%clk 0:02:31.8]} 12... Bxd4 {[%clk
0:02:19.7]} 13. Bxd4 {[%clk 0:02:31.3]} 13... e5 {[%clk 0:02:19.9]} 14. Qxb4
{[%clk 0:02:30.4]} 14... Qc7 {[%clk 0:02:13.2]} 15. Bc3 {[%clk 0:02:29]} 15...
Ngf6 {[%clk 0:02:10.7]} 16. Nd5 {[%clk 0:02:23.8]} 16... Bxd5 {[%clk 0:02:04.6]}
17. exd5 {[%clk 0:02:23.7]} 17... Nxd5 {[%clk 0:02:03.6]} 18. Qa5 {[%clk
0:02:23.9]} 18... Qc5 {[%clk 0:01:45.3]} 19. Bd2 {[%clk 0:02:18.5]} 19... Qxa5
{[%clk 0:01:33]} 20. Bxa5 {[%clk 0:02:18]} 20... Nf4 {[%clk 0:01:29.9]} 21. Bf1
{[%clk 0:02:13]} 21... O-O {[%clk 0:01:27.6]} 22. g3 {[%clk 0:02:13]} 22... Ne6
{[%clk 0:01:27.8]} 23. O-O-O {[%clk 0:02:12.5]} 23... Ndc5 {[%clk 0:01:18.7]}
24. b3 {[%clk 0:01:58.8]} 24... Nd4 {[%clk 0:01:16.7]} 25. Kb2 {[%clk
0:01:49.5]} 25... Rfc8 {[%clk 0:01:10.3]} 26. Bc4 {[%clk 0:01:49]} 26... Rab8
{[%clk 0:01:09.3]} 27. Rxd4 {[%clk 0:00:55.7]} 27... exd4 {[%clk 0:01:10.2]} 28.
Ka3 {[%clk 0:00:56.3]} 28... Ne4 {[%clk 0:01:04.9]} 29. Rd1 {[%clk 0:00:51]}
29... d5 {[%clk 0:00:50]} 30. Rxd4 {[%clk 0:00:47.6]} 30... dxc4 {[%clk
0:00:48.5]} 31. Rxe4 {[%clk 0:00:47.4]} 31... cxb3 {[%clk 0:00:48.6]} 32. cxb3
{[%clk 0:00:47.5]} 32... Rc2 {[%clk 0:00:48.3]} 33. f4 {[%clk 0:00:41.8]} 33...
Rg2 {[%clk 0:00:46.1]} 34. Re3 {[%clk 0:00:41.8]} 34... Rc8 {[%clk 0:00:46.2]}
35. Bb6 {[%clk 0:00:37.5]} 35... Rc6 {[%clk 0:00:44.6]} 36. a5 {[%clk
0:00:29.8]} 36... f5 {[%clk 0:00:43.2]} 37. Kb4 {[%clk 0:00:29.1]} 37... Kf7
{[%clk 0:00:43.2]} 38. Bd4 {[%clk 0:00:23.3]} 38... Re6 {[%clk 0:00:42.4]} 39.
Be5 {[%clk 0:00:23.1]} 39... Rc2 {[%clk 0:00:42.3]} 40. Rd3 {[%clk 0:00:22.5]}
40... Rec6 {[%clk 0:00:41.9]} 41. Rd7+ {[%clk 0:00:21.9]} 41... Ke6 {[%clk
0:00:42.5]} 42. Rg7 {[%clk 0:00:20.2]} 42... Kd5 {[%clk 0:00:42.4]} 43. h5
{[%clk 0:00:19.3]} 43... gxh5 {[%clk 0:00:42.1]} 44. Rf7 {[%clk 0:00:18.3]}
44... Ke4 {[%clk 0:00:42.2]} 45. Bf6 {[%clk 0:00:13.2]} 45... R2c5 {[%clk
0:00:41.7]} 46. Bh4 {[%clk 0:00:12.4]} 46... Rb5+ {[%clk 0:00:41.6]} 47. Ka4
{[%clk 0:00:12.6]} 47... Rc3 {[%clk 0:00:39.7]} 48. b4 {[%clk 0:00:11]} 48...
Rd5 {[%clk 0:00:37.9]} 49. Re7+ {[%clk 0:00:10.4]} 49... Kf3 {[%clk 0:00:37.8]}
50. Re1 {[%clk 0:00:08.9]} 50... Rdd3 {[%clk 0:00:35.6]} 51. Ra1 {[%clk
0:00:09.3]} 51... Kg4 {[%clk 0:00:35.7]} 52. Ra2 {[%clk 0:00:09.5]} 52... Rc4
{[%clk 0:00:35.5]} 53. Rb2 {[%clk 0:00:08.9]} 53... Rxg3 {[%clk 0:00:34.3]} 54.
Bxg3 {[%clk 0:00:08.6]} 54... Kxg3 {[%clk 0:00:35.2]} 55. Kb3 {[%clk 0:00:08.7]}
55... Rxf4 {[%clk 0:00:35.1]} 56. Rc2 {[%clk 0:00:08.4]} 56... h4 {[%clk
0:00:35.2]} 57. Rc6 {[%clk 0:00:08.6]} 57... h3 {[%clk 0:00:35.3]} 58. Rxh6
{[%clk 0:00:08.8]} 58... h2 {[%clk 0:00:35.1]} 59. b5 {[%clk 0:00:08.1]} 59...
Rh4 {[%clk 0:00:32.2]} 60. Rg6+ {[%clk 0:00:05.8]} 60... Kf4 {[%clk 0:00:32]}
0-1

[Event "Early-Titled-Tuesday-Blitz-November-28-2023"]
[Site "Chess.com"]
[Date "2023.11.28"]
[Round "1"]
[White "zsizsi99"]
[Black "Korchmar_Vasiliy"]
[Result "0-1"]
[WhiteElo "2413"]
[BlackElo "2729"]
[TimeControl "180+1"]
[EndTime "8:07:52 PST"]
[Termination "Korchmar_Vasiliy won on time"]

1. e4 {[%clk 0:03:00.9]} 1... c5 {[%clk 0:03:00.1]} 2. Nf3 {[%clk 0:03:00.7]}
2... d6 {[%clk 0:03:00.7]} 3. d4 {[%clk 0:03:00.2]} 3... cxd4 {[%clk 0:03:01.6]}
4. Nxd4 {[%clk 0:03:00.7]} 4... Nf6 {[%clk 0:03:02.3]} 5. Nc3 {[%clk 0:03:01.1]}
5... Nc6 {[%clk 0:03:02.9]} 6. Bg5 {[%clk 0:02:36.6]} 6... Bd7 {[%clk
0:03:01.9]} 7. Qd2 {[%clk 0:02:33.5]} 7... a6 {[%clk 0:03:01.5]} 8. O-O-O {[%clk
0:02:33.7]} 8... e6 {[%clk 0:03:01.4]} 9. Kb1 {[%clk 0:02:23.3]} 9... Be7 {[%clk
0:03:00.3]} 10. f3 {[%clk 0:02:20.4]} 10... Nxd4 {[%clk 0:03:00.1]} 11. Qxd4
{[%clk 0:02:18.4]} 11... b5 {[%clk 0:02:56.9]} 12. e5 {[%clk 0:02:07.2]} 12...
dxe5 {[%clk 0:02:51.6]} 13. Qxe5 {[%clk 0:02:07.3]} 13... O-O {[%clk 0:02:37.9]}
14. Bd3 {[%clk 0:01:59.3]} 14... Ng4 {[%clk 0:01:27]} 15. Bxe7 {[%clk
0:01:29.2]} 15... Nxe5 {[%clk 0:01:26.6]} 16. Bxd8 {[%clk 0:01:29]} 16... Rfxd8
{[%clk 0:01:25]} 17. Be4 {[%clk 0:01:23.1]} 17... Rab8 {[%clk 0:01:13.6]} 18.
Rd6 {[%clk 0:01:20.5]} 18... b4 {[%clk 0:01:04.4]} 19. Nd1 {[%clk 0:00:49.9]}
19... Bb5 {[%clk 0:01:03.1]} 20. Rxd8+ {[%clk 0:00:49.7]} 20... Rxd8 {[%clk
0:01:04]} 21. Ne3 {[%clk 0:00:45.5]} 21... f5 {[%clk 0:01:03]} 22. f4 {[%clk
0:00:35.6]} 22... Ng6 {[%clk 0:00:59.3]} 23. Bf3 {[%clk 0:00:31]} 23... Nxf4
{[%clk 0:00:59.7]} 24. g3 {[%clk 0:00:27.5]} 24... Ng6 {[%clk 0:00:54.3]} 25.
Kc1 {[%clk 0:00:21.2]} 25... Kf7 {[%clk 0:00:53.8]} 26. Re1 {[%clk 0:00:17.4]}
26... Ne5 {[%clk 0:00:50.2]} 27. Be2 {[%clk 0:00:17.7]} 27... Bxe2 {[%clk
0:00:44.1]} 28. Rxe2 {[%clk 0:00:18.4]} 28... Kf6 {[%clk 0:00:44.5]} 29. Nd1
{[%clk 0:00:17.4]} 29... g5 {[%clk 0:00:42.6]} 30. c3 {[%clk 0:00:17.3]} 30...
a5 {[%clk 0:00:41.6]} 31. Kc2 {[%clk 0:00:17.4]} 31... f4 {[%clk 0:00:35.6]} 32.
gxf4 {[%clk 0:00:17.4]} 32... gxf4 {[%clk 0:00:36.5]} 33. cxb4 {[%clk
0:00:17.6]} 33... axb4 {[%clk 0:00:37.4]} 34. Re4 {[%clk 0:00:18]} 34... Nd3
{[%clk 0:00:23.1]} 35. Rc4 {[%clk 0:00:10.5]} 35... e5 {[%clk 0:00:19.4]} 36. h4
{[%clk 0:00:10.3]} 36... h5 {[%clk 0:00:18.7]} 37. a4 {[%clk 0:00:10.9]} 37...
bxa3 {[%clk 0:00:18.1]} 38. bxa3 {[%clk 0:00:11.5]} 38... f3 {[%clk 0:00:17.4]}
39. Rc6+ {[%clk 0:00:07.8]} 39... Kf5 {[%clk 0:00:17.1]} 40. Rc7 {[%clk
0:00:08.5]} 40... e4 {[%clk 0:00:12.3]} 41. a4 {[%clk 0:00:08.2]} 41... Kg4
{[%clk 0:00:10]} 42. a5 {[%clk 0:00:07.4]} 42... Kxh4 {[%clk 0:00:10.5]} 43. a6
{[%clk 0:00:07.2]} 43... Nb4+ {[%clk 0:00:10.9]} 44. Kc1 {[%clk 0:00:04.3]}
44... Nxa6 {[%clk 0:00:11.8]} 45. Re7 {[%clk 0:00:03.7]} 45... Nc5 {[%clk
0:00:11.1]} 46. Nf2 {[%clk 0:00:03.7]} 46... Kg3 {[%clk 0:00:09.2]} 47. Nxe4+
{[%clk 0:00:02.7]} 47... Nxe4 {[%clk 0:00:09.5]} 48. Rxe4 {[%clk 0:00:03.3]}
48... f2 {[%clk 0:00:10.2]} 49. Re3+ {[%clk 0:00:02.7]} 49... Kg2 {[%clk
0:00:08.3]} 0-1

[Event "Early-Titled-Tuesday-Blitz-November-28-2023"]
[Site "Chess.com"]
[Date "2023.11.28"]
[Round "1"]
[White "Ron_Weasley_Chess"]
[Black "Sadykov_Ramil"]
[Result "0-1"]
[WhiteElo "2390"]
[BlackElo "2693"]
[TimeControl "180+1"]
[EndTime "8:07:54 PST"]
[Termination "Sadykov_Ramil won by resignation"]

1. Nf3 {[%clk 0:03:00.9]} 1... c5 {[%clk 0:02:59.8]} 2. g3 {[%clk 0:03:00.5]}
2... Nc6 {[%clk 0:02:59.8]} 3. Bg2 {[%clk 0:02:59.6]} 3... e5 {[%clk 0:03:00.1]}
4. d3 {[%clk 0:02:52.2]} 4... d5 {[%clk 0:02:59.8]} 5. O-O {[%clk 0:02:52.3]}
5... Be7 {[%clk 0:03:00]} 6. c4 {[%clk 0:02:52.1]} 6... d4 {[%clk 0:02:56.5]} 7.
b4 {[%clk 0:02:51.7]} 7... cxb4 {[%clk 0:02:55.3]} 8. a3 {[%clk 0:02:52.1]} 8...
bxa3 {[%clk 0:02:50.4]} 9. Nbd2 {[%clk 0:02:51.9]} 9... Nf6 {[%clk 0:02:47.7]}
10. Bxa3 {[%clk 0:02:50.5]} 10... Bxa3 {[%clk 0:02:43.8]} 11. Rxa3 {[%clk
0:02:51.4]} 11... O-O {[%clk 0:02:44.2]} 12. Qa1 {[%clk 0:02:48.8]} 12... Nd7
{[%clk 0:02:35.3]} 13. Rb1 {[%clk 0:02:42.6]} 13... Qc7 {[%clk 0:02:23.6]} 14.
Ne1 {[%clk 0:02:12.4]} 14... Nc5 {[%clk 0:02:02.5]} 15. Nc2 {[%clk 0:02:12]}
15... Bd7 {[%clk 0:01:51.2]} 16. Nb3 {[%clk 0:02:02.8]} 16... Nxb3 {[%clk
0:01:35]} 17. Raxb3 {[%clk 0:02:03.7]} 17... Rfb8 {[%clk 0:01:34.1]} 18. Qa3
{[%clk 0:01:36.4]} 18... a5 {[%clk 0:01:02.6]} 19. c5 {[%clk 0:01:14.9]} 19...
Ra6 {[%clk 0:00:48.2]} 20. Rb6 {[%clk 0:01:11.3]} 20... Rxb6 {[%clk 0:00:42.2]}
21. cxb6 {[%clk 0:01:12]} 21... Qd8 {[%clk 0:00:42.2]} 22. Qd6 {[%clk
0:00:58.8]} 22... Ra8 {[%clk 0:00:36.6]} 23. Na3 {[%clk 0:00:56.3]} 23... Be8
{[%clk 0:00:26.3]} 24. Nc4 {[%clk 0:00:46.8]} 24... a4 {[%clk 0:00:20.2]} 25.
Qxd8 {[%clk 0:00:35.1]} 25... Rxd8 {[%clk 0:00:14.7]} 26. Bxc6 {[%clk
0:00:35.2]} 26... Bxc6 {[%clk 0:00:15.6]} 27. Nxe5 {[%clk 0:00:35.9]} 27... Bd5
{[%clk 0:00:13]} 28. Nc4 {[%clk 0:00:30.5]} 28... Bxc4 {[%clk 0:00:08.7]} 29.
dxc4 {[%clk 0:00:31.4]} 29... Kf8 {[%clk 0:00:08.5]} 30. Ra1 {[%clk 0:00:27]}
30... Ra8 {[%clk 0:00:07.9]} 31. Kg2 {[%clk 0:00:27.7]} 31... Ke7 {[%clk
0:00:08.5]} 32. Kf3 {[%clk 0:00:28.2]} 32... Kd6 {[%clk 0:00:09]} 33. Ke4 {[%clk
0:00:27.9]} 33... Kc5 {[%clk 0:00:09.1]} 34. Kd3 {[%clk 0:00:22.5]} 34... a3
{[%clk 0:00:09.5]} 35. Ra2 {[%clk 0:00:21.7]} 35... Ra4 {[%clk 0:00:08.9]} 36.
f3 {[%clk 0:00:18.2]} 36... f5 {[%clk 0:00:08.6]} 37. h4 {[%clk 0:00:18.8]}
37... g6 {[%clk 0:00:08.4]} 38. g4 {[%clk 0:00:15.5]} 38... h5 {[%clk
0:00:08.4]} 39. gxh5 {[%clk 0:00:14.8]} 39... gxh5 {[%clk 0:00:09.3]} 40. Ra1
{[%clk 0:00:06.5]} 40... a2 {[%clk 0:00:09.3]} 41. Kc2 {[%clk 0:00:06.5]} 41...
Kxc4 {[%clk 0:00:09.3]} 42. Kb2 {[%clk 0:00:07.2]} 42... Kc5 {[%clk 0:00:06.6]}
43. Kb3 {[%clk 0:00:07.1]} 43... Ra6 {[%clk 0:00:06.5]} 44. Kb2 {[%clk
0:00:06.6]} 44... Rxb6+ {[%clk 0:00:06.1]} 45. Ka3 {[%clk 0:00:05.7]} 45... Ra6+
{[%clk 0:00:06.3]} 46. Kb3 {[%clk 0:00:06]} 46... Kd5 {[%clk 0:00:06.2]} 47.
Rxa2 {[%clk 0:00:04.8]} 47... Rxa2 {[%clk 0:00:06]} 48. Kxa2 {[%clk 0:00:05.7]}
48... d3 {[%clk 0:00:06.1]} 49. exd3 {[%clk 0:00:04.3]} 49... Kd4 {[%clk
0:00:06.4]} 50. Kb3 {[%clk 0:00:04.7]} 50... Kxd3 {[%clk 0:00:06.8]} 0-1